bitfinex/quotes_ETHUSD_20251124
["timestamp","ask_amount","ask_price","bid_price","bid_amount"]
[1763961194077,0.4779,2886.9,2885.4,0.82699419]
[1763961194078,0.4779,2886.9,2886.0,0.09155]
[1763961194462,0.4779,2886.9,2885.4,0.82699419]
[1763961194692,0.4779,2886.9,2885.8,0.09155]
[1763961195258,0.4779,2886.9,2885.4,0.82699419]
[1763961195593,0.4779,2886.9,2886.1,0.09155]
[1763961195897,0.4779,2886.9,2886.3,0.09155]
[1763961196293,0.4779,2886.9,2885.9,0.09155]
[1763961196600,0.4779,2886.9,2885.7,0.09155]
[1763961196900,0.4779,2886.9,2884.8,7.32528957]
[1763961196901,0.4779,2886.9,2884.8,0.90699264]
[1763961197073,0.4779,2886.9,2885.6,0.09155]
[1763961197264,0.4779,2886.9,2885.9,0.09155]
[1763961198302,2.1053,2886.8,2885.7,0.09155]
[1763961198600,0.4779,2886.7,2885.7,0.09155]
[1763961200094,0.4779,2886.7,2886.0,0.09155]
[1763961201778,0.4779,2886.7,2885.7,0.09155]
[1763961202001,0.4779,2886.7,2886.0,0.09155]
[1763961203295,0.4779,2886.7,2885.7,0.09155]
[1763961204327,0.4779,2886.7,2886.0,0.09155]
[1763961204823,0.4799,2886.7,2886.0,0.09155]
[1763961205595,0.4799,2886.7,2885.8,0.09155]
[1763961206425,0.4799,2886.7,2885.6,0.09155]
[1763961206917,0.4799,2886.7,2885.3,0.001]
[1763961206918,0.1976,2885.7,2885.3,0.001]
[1763961207098,0.1976,2885.7,2885.3,0.09255]
[1763961207831,0.1976,2886.0,2885.3,0.09255]
[1763961208132,0.4779,2886.1,2885.5,0.09155]
[1763961208300,0.1976,2886.3,2885.3,0.001]
[1763961208503,0.1976,2886.3,2885.6,0.09155]
[1763961208898,0.4779,2886.2,2885.6,0.09155]
[1763961209224,0.4779,2886.2,2885.3,0.001]
[1763961209437,0.4779,2886.2,2885.4,0.09155]
[1763961210434,0.4779,2886.2,2885.6,0.09155]
[1763961211136,0.4779,2886.2,2885.3,0.09255]
[1763961211433,0.4779,2886.2,2885.3,0.001]
[1763961211632,0.4692,2885.4,2885.3,0.001]
[1763961211822,0.9471,2885.4,2885.3,0.001]
[1763961212747,0.4779,2886.2,2885.3,0.001]
[1763961212932,0.4779,2886.2,2885.5,0.09155]
[1763961213173,0.4779,2886.2,2885.3,0.001]
[1763961213344,0.4779,2886.2,2885.3,0.09255]
[1763961213649,0.4779,2886.2,2885.3,0.001]
[1763961213809,0.4779,2886.2,2885.0,0.001]
[1763961213810,1.38489264,2886.2,2885.0,0.001]
[1763961214158,6.170881,2885.7,2883.7,0.09155]
[1763961214354,0.1976,2884.6,2884.0,0.09155]
[1763961214516,0.1976,2884.6,2883.8,0.09155]
[1763961215021,0.1976,2883.9,2883.0,2.34141737]
[1763961215213,0.1976,2883.9,2883.4,0.09155]
[1763961215413,0.1976,2884.6,2883.1,0.005]
[1763961215614,0.1976,2884.6,2883.8,0.09155]
[1763961215843,0.1976,2884.6,2884.1,0.09155]
[1763961216029,0.4779,2884.5,2883.5,0.09155]
[1763961216418,0.1976,2884.6,2883.5,0.09155]
[1763961216623,0.4779,2884.5,2883.5,0.09155]
[1763961217055,0.1976,2885.0,2883.5,7.41683957]
[1763961217371,0.4824,2885.4,2884.6,0.09155]
[1763961217736,0.4824,2885.4,2884.8,0.09155]
[1763961218273,0.1928,2886.0,2884.1,0.005]
[1763961218448,4.08133279,2887.5,2885.1,0.90699264]
[1763961218449,0.1928,2886.6,2885.1,0.90699264]
[1763961218652,0.1928,2886.6,2886.1,0.09155]
[1763961218839,0.6752,2886.6,2885.6,0.09155]
[1763961219242,0.4824,2886.5,2885.6,0.09155]
[1763961219664,0.4824,2886.5,2885.0,0.005]
[1763961219844,0.4824,2886.5,2885.5,0.09155]
[1763961220178,0.1928,2886.8,2886.0,0.09155]
[1763961220361,0.1928,2886.8,2886.2,0.09155]
[1763961220686,0.1928,2886.8,2886.0,0.09155]
[1763961220872,0.4844,2886.7,2885.8,0.09155]
[1763961222367,0.4844,2886.7,2885.2,0.90699264]
[1763961222545,0.4844,2886.7,2885.9,0.09155]
[1763961223046,0.4844,2886.7,2885.1,3.46603125]
[1763961223047,2.193758,2886.6,2884.6,2.34041737]
[1763961223378,0.4844,2886.7,2885.6,7.32528957]
[1763961223581,0.4844,2886.7,2886.0,0.1]
[1763961223745,0.002,2886.7,2886.0,0.1]
[1763961224377,0.002,2886.7,2886.3,0.1]
[1763961224597,0.002,2886.7,2885.6,7.33028957]
[1763961224598,0.002,2887.0,2886.6,6.7552722]
[1763961224804,0.002,2887.0,2886.9,0.1]
[1763961225099,0.002,2887.0,2886.4,0.1]
[1763961225406,0.002,2887.0,2886.7,0.1]
[1763961225920,0.002,2887.0,2886.3,0.90699264]
[1763961226067,0.1905,2886.9,2886.2,6.6552722]
[1763961226406,0.1905,2886.9,2886.2,6.7552722]
[1763961226609,0.6601,2886.9,2886.2,0.1]
[1763961226774,0.6601,2886.9,2885.7,8.06038816]
[1763961227117,0.1905,2886.9,2885.8,0.80653882]
[1763961227410,0.1905,2886.9,2886.1,0.1]
[1763961228876,0.4696,2886.8,2885.9,0.1]
[1763961229901,0.4696,2886.8,2886.2,0.1]
[1763961230599,0.4696,2886.8,2885.7,1.00699264]
[1763961230806,0.4696,2886.8,2886.0,0.1]
[1763961231488,0.1905,2886.9,2886.3,0.1]
[1763961232604,0.6601,2886.9,2886.3,0.1]
[1763961233299,0.6601,2886.9,2886.1,0.1]
[1763961233505,0.4696,2886.8,2885.9,0.1]
[1763961233970,0.4696,2886.8,2885.2,0.90699264]
[1763961234171,0.4696,2886.8,2885.8,0.1]
[1763961234665,0.1905,2886.9,2886.1,0.1]
[1763961234865,0.6601,2886.9,2886.1,0.1]
[1763961235069,0.6601,2886.9,2885.6,7.3323592]
[1763961235306,0.6601,2886.9,2886.3,0.1]
[1763961235474,0.1905,2886.8,2886.3,0.1]
[1763961235870,0.002,2887.0,2886.1,7.3273592]
[1763961236074,0.002,2887.0,2886.7,0.1]
[1763961236503,0.002,2887.0,2886.9,0.1]
[1763961236705,0.002,2887.0,2886.9,0.4493]
[1763961237283,0.002,2887.0,2885.9,0.3493]
[1763961237583,0.1905,2886.9,2886.0,0.38145069]
[1763961237776,0.1905,2886.9,2884.3,3.46702185]
[1763961237777,0.1905,2886.9,2885.3,0.3493]
[1763961237973,0.4696,2886.8,2885.5,0.2746]
[1763961238386,0.4696,2886.8,2885.8,0.1]
[1763961238587,0.4696,2886.8,2886.2,0.1]
[1763961239377,0.4696,2886.8,2885.7,6.11404774]
[1763961241714,0.1905,2885.8,2885.6,0.001]
[1763961242083,0.4696,2885.7,2885.6,0.001]
[1763961243348,0.1905,2885.8,2885.6,0.001]
[1763961243640,0.4696,2885.7,2885.6,0.001]
[1763961243938,0.1905,2885.8,2885.6,0.001]
[1763961244247,0.6601,2885.8,2885.6,0.001]
[1763961244760,0.4696,2886.7,2885.6,0.101]
[1763961245048,0.1925,2886.9,2886.3,0.1]
[1763961245416,0.002,2886.9,2886.3,0.1]
[1763961245634,0.002,2886.9,2886.8,0.1]
[1763961247503,0.002,2886.9,2886.4,0.1]
[1763961247832,0.002,2886.9,2885.7,0.61150477]
[1763961247833,0.196,2886.9,2885.7,0.61150477]
[1763961248025,0.4896,2886.8,2886.1,0.1]
[1763961248536,0.4896,2886.8,2885.5,6.36334774]
[1763961248537,0.196,2886.9,2886.4,0.1]
[1763961248939,0.4896,2886.8,2886.4,0.1]
[1763961249106,0.4896,2886.8,2885.8,6.6657566]
[1763961249309,0.4896,2886.8,2885.9,0.66657566]
[1763961250517,0.4896,2886.8,2886.0,0.1]
[1763961252006,0.4896,2886.8,2885.8,6.5657566]
[1763961252210,0.4896,2886.8,2886.1,0.1]
[1763961253266,0.002,2886.9,2886.1,0.4493]
[1763961253408,0.002,2886.9,2886.5,6.5657566]
[1763961253606,0.002,2886.9,2886.7,0.1]
[1763961254202,0.4896,2886.8,2885.8,0.90699264]
[1763961254427,0.4896,2886.8,2885.9,0.1]
[1763961255063,0.196,2886.9,2886.1,6.5657566]
[1763961255361,0.002,2886.9,2886.5,0.1]
[1763961255860,0.002,2886.9,2886.5,6.5657566]
[1763961256026,0.002,2886.9,2886.8,0.1]
[1763961256226,0.002,2886.9,2886.4,0.1]
[1763961256464,0.196,2886.9,2886.4,0.1]
[1763961256626,0.6856,2886.9,2886.4,0.1]
[1763961257028,0.4896,2886.8,2886.0,6.5657566]
[1763961257242,0.4896,2886.8,2886.3,0.1]
[1763961257450,0.4896,2886.8,2886.0,6.5657566]
[1763961257451,0.4896,2886.8,2886.0,6.6657566]
[1763961258024,0.196,2886.9,2886.2,0.1]
[1763961258229,0.196,2886.9,2886.3,0.1]
[1763961258662,0.4896,2886.8,2885.6,6.5667566]
[1763961258837,0.4896,2886.8,2885.8,0.1]
[1763961259048,0.4896,2886.8,2886.1,0.1]
[1763961259243,0.002,2886.9,2886.5,6.5657566]
[1763961259430,0.002,2886.9,2886.8,0.1]
[1763961259957,0.002,2886.9,2886.6,0.1]
[1763961260347,0.6856,2886.9,2885.7,0.65667566]
[1763961260551,0.6856,2886.9,2886.1,0.1]
[1763961261032,0.196,2886.9,2886.1,0.1]
[1763961261236,0.002,2886.9,2886.2,6.60040423]
[1763961261572,0.002,2886.9,2886.8,0.1]
[1763961262172,0.002,2886.9,2886.3,0.001]
[1763961262382,0.196,2886.9,2886.4,0.1]
[1763961263276,0.002,2886.9,2886.4,0.1]
[1763961263682,0.196,2886.9,2886.4,0.1]
[1763961263882,0.4896,2886.8,2886.3,0.001]
[1763961265896,7.066519,2886.7,2886.3,0.001]
[1763961266087,0.7556119,2886.6,2886.3,0.001]
[1763961266383,2.904384,2886.4,2886.3,0.001]
[1763961266589,0.4896,2886.4,2886.3,0.001]
[1763961266885,2.791984,2886.4,2886.3,0.001]
[1763961267084,4.02435864,2886.4,2886.3,0.001]
[1763961267489,1.39659264,2886.4,2885.6,0.001]
[1763961267684,0.194,2885.7,2885.6,0.001]
[1763961267985,0.4896,2886.3,2885.6,0.001]
[1763961268186,0.4896,2886.7,2885.6,0.001]
[1763961268350,0.4896,2886.7,2885.8,0.1]
[1763961268786,0.196,2886.9,2886.1,0.1]
[1763961268988,0.002,2886.9,2886.4,6.5657566]
[1763961269189,0.196,2886.9,2886.0,6.5657566]
[1763961269388,0.196,2886.9,2886.2,0.1]
[1763961269793,0.196,2886.9,2886.2,0.76657566]
[1763961270810,0.002,2886.9,2886.2,0.70122329]
[1763961271117,0.002,2886.9,2886.6,0.1]
[1763961271480,0.196,2886.9,2886.2,0.66657566]
[1763961271684,0.196,2886.9,2886.3,0.1]
[1763961273584,0.002,2886.9,2886.3,0.1]
[1763961273921,0.002,2886.9,2886.2,0.66657566]
[1763961274221,0.002,2886.9,2886.4,0.1]
[1763961275021,0.196,2886.9,2886.4,0.1]
[1763961275220,0.002,2886.9,2886.4,0.1]
[1763961275409,0.002,2886.9,2886.7,0.1]
[1763961275611,0.002,2886.9,2886.5,0.03464403]
[1763961275612,0.002,2886.9,2886.8,0.4493]
[1763961276422,0.002,2886.9,2886.5,0.1]
[1763961276722,0.002,2886.9,2886.5,0.80150566]
[1763961277087,0.002,2886.9,2886.4,6.5657566]
[1763961277325,0.002,2886.9,2886.7,0.1]
[1763961278355,0.002,2886.9,2886.4,6.5657566]
[1763961278558,0.002,2886.9,2886.7,0.1]
[1763961278975,0.9303,2886.8,2885.7,0.66667566]
[1763961279126,0.9303,2886.8,2885.9,0.1]
[1763961279327,0.4638,2886.7,2885.6,0.001]
[1763961279638,0.4638,2886.7,2885.7,0.1]
[1763961279834,0.4638,2886.7,2886.3,0.001]
[1763961280269,0.4665,2886.4,2886.3,0.001]
[1763961280767,0.9303,2886.4,2886.3,0.001]
[1763961283559,0.4665,2886.4,2886.3,0.001]
[1763961283732,0.4638,2886.8,2886.3,0.001]
[1763961283938,0.4665,2886.4,2886.3,0.001]
[1763961284461,0.9303,2886.4,2886.3,0.001]
[1763961288067,3.526855,2886.4,2886.3,0.001]
[1763961288272,7.7525405,2886.4,2886.3,0.001]
[1763961288504,7.8795405,2886.4,2886.3,0.001]
[1763961288641,4.8413605,2886.4,2886.3,0.001]
[1763961289172,4.8413605,2886.4,2886.0,0.001]
[1763961289375,4.6734,2886.1,2886.0,0.001]
[1763961289578,5.18829,2886.1,2886.0,0.001]
[1763961289873,5.66379,2886.1,2886.0,0.001]
[1763961291282,3.867877,2886.1,2886.0,0.001]
[1763961292384,3.64896,2886.1,2886.0,0.001]
[1763961293312,4.41809,2886.1,2885.6,0.001]
[1763961293534,0.6583,2885.7,2885.6,0.001]
[1763961293714,1.1338,2885.7,2885.6,0.001]
[1763961294697,3.699866,2885.7,2885.6,0.001]
[1763961295012,1.1338,2885.7,2885.6,0.001]
[1763961295213,3.2466,2885.7,2885.6,0.001]
[1763961295392,1.45846,2885.7,2885.6,0.001]
[1763961295587,1.1338,2885.7,2885.6,0.001]
[1763961296217,3.221066,2885.7,2885.6,0.001]
[1763961296401,4.99955,2885.7,2885.6,0.001]
[1763961297485,6.722177,2885.7,2885.6,0.001]
[1763961298013,0.6583,2885.7,2885.6,0.001]
[1763961298215,3.221066,2885.7,2885.6,0.001]
[1763961298420,1.1338,2885.7,2885.6,0.001]
[1763961299720,0.6583,2885.7,2885.6,0.001]
[1763961300139,1.1338,2885.7,2885.6,0.001]
[1763961300438,0.4755,2886.2,2885.6,0.3503]
[1763961300603,0.002,2886.3,2885.6,0.3503]
[1763961300804,0.002,2886.3,2886.2,0.5239]
[1763961301313,0.002,2886.9,2886.2,1.59190416]
[1763961301514,0.1956,2888.3,2886.2,1.59190416]
[1763961301515,0.54360814,2887.4,2886.8,7.11044158]
[1763961301715,0.1956,2888.3,2886.8,7.11044158]
[1763961301716,0.1956,2888.3,2887.2,0.1]
[1763961301903,0.18126611,2887.3,2887.2,0.1]
[1763961302098,0.6711,2887.9,2886.5,0.3453]
[1763961302334,0.6711,2887.9,2886.5,0.4453]
[1763961302541,0.6711,2887.9,2886.2,0.89330416]
[1763961302542,3.2244,2887.7,2886.2,0.89330416]
[1763961302705,0.36999,2887.6,2886.2,0.5199]
[1763961303004,0.4755,2887.7,2886.4,0.1]
[1763961303206,4.95693,2887.6,2886.2,0.1746]
[1763961303598,0.4755,2887.5,2886.2,0.1746]
[1763961303837,0.4755,2887.5,2886.3,0.1]
[1763961304221,0.1956,2887.9,2886.6,0.1]
[1763961304437,0.4755,2888.6,2887.4,0.1]
[1763961304645,0.4755,2888.4,2887.7,0.1]
[1763961304853,0.1956,2889.3,2888.0,0.1]
[1763961305149,0.1956,2889.3,2887.5,6.66314158]
[1763961305150,0.54355145,2889.6,2888.4,0.1706]
[1763961305337,0.158821,2889.8,2888.9,6.76314158]
[1763961305510,0.158821,2889.8,2888.9,7.43945574]
[1763961305715,0.158821,2889.8,2888.9,7.78475574]
[1763961306247,0.158821,2889.8,2888.9,0.77631416]
[1763961306428,0.158821,2889.8,2888.9,0.4453]
[1763961307128,0.158821,2889.8,2888.9,7.00844158]
[1763961307334,0.158821,2889.8,2888.5,3.46189813]
[1763961307335,0.158821,2889.8,2889.7,0.1]
[1763961307740,0.158821,2889.8,2889.4,0.1]
[1763961308053,0.158821,2889.8,2888.8,7.00844158]
[1763961308224,0.158821,2889.8,2889.3,6.66314158]
[1763961308425,0.650221,2889.8,2889.4,0.1]
[1763961308824,0.158821,2889.8,2889.4,0.1]
[1763961309028,0.158821,2889.8,2889.7,0.1]
[1763961309664,0.158821,2889.8,2889.7,0.4453]
[1763961309863,0.158821,2889.8,2889.7,0.1]
[1763961310226,0.158821,2889.8,2889.2,6.66314158]
[1763961310428,0.158821,2889.8,2889.3,1.01161416]
[1763961310828,0.158821,2889.8,2889.7,0.095]
[1763961311629,0.158821,2889.8,2889.0,0.5773]
[1763961311838,0.158821,2889.8,2889.7,0.095]
[1763961312038,0.158821,2889.8,2889.1,7.00844158]
[1763961312272,0.158821,2889.8,2889.7,0.095]
[1763961312766,0.158821,2889.8,2888.7,7.00844158]
[1763961312964,0.158821,2889.8,2888.8,0.32625]
[1763961313166,0.158821,2889.8,2888.8,0.5773]
[1763961313369,0.158821,2889.8,2889.4,0.09425]
[1763961314370,0.650221,2889.8,2889.3,0.09425]
[1763961314732,0.4914,2889.7,2889.3,0.09425]
[1763961315130,0.158821,2889.8,2889.3,0.09425]
[1763961315333,0.158821,2889.8,2889.6,0.09425]
[1763961316176,0.158821,2889.8,2889.7,0.09425]
[1763961316746,0.158821,2889.8,2889.7,0.0941375]
[1763961317633,0.158821,2889.8,2889.4,0.0941375]
[1763961317837,0.160821,2889.8,2889.7,0.0941375]
[1763961318032,0.160821,2889.8,2889.4,0.0941375]
[1763961318670,0.160821,2889.8,2889.7,0.4394375]
[1763961319035,0.160821,2889.8,2889.2,6.15826655]
[1763961319248,0.160821,2889.8,2889.3,0.61582666]
[1763961319463,0.160821,2889.8,2889.0,0.333]
[1763961319658,0.160821,2889.8,2889.0,0.233]
[1763961319845,0.160821,2889.8,2889.7,0.1]
[1763961320248,1.131121,2889.8,2889.4,0.1]
[1763961320472,1.131121,2889.8,2889.0,0.001]
[1763961320473,0.160821,2889.8,2889.0,0.001]
[1763961320644,0.4914,2889.7,2888.4,0.3186]
[1763961320839,0.4914,2889.7,2889.4,0.1]
[1763961321039,0.160821,2889.8,2889.4,0.1]
[1763961321347,0.4914,2889.7,2889.3,0.1]
[1763961321552,0.4914,2889.7,2888.5,0.1812]
[1763961321766,0.4914,2889.7,2889.1,0.1]
[1763961322672,0.160821,2889.8,2888.6,0.69309416]
[1763961322839,0.4914,2889.7,2889.3,0.1]
[1763961323047,0.4914,2889.7,2888.6,0.69309416]
[1763961323240,0.4914,2889.7,2888.7,0.1]
[1763961323674,0.4914,2889.7,2888.8,0.1]
[1763961324342,0.4914,2889.7,2889.0,0.1]
[1763961327472,0.4914,2889.7,2888.4,0.0866]
[1763961327691,0.4914,2889.7,2889.1,0.1]
[1763961329060,0.4914,2889.7,2888.4,0.0866]
[1763961329269,0.4914,2889.7,2888.9,0.1]
[1763961329581,0.4914,2889.7,2888.7,0.1]
[1763961329885,0.4914,2889.7,2888.6,0.1]
[1763961330575,0.4914,2889.7,2888.8,0.1]
[1763961330771,0.4914,2889.7,2888.4,0.0866]
[1763961330973,0.4914,2889.7,2889.0,0.1]
[1763961331390,0.4789,2889.1,2888.6,0.1]
[1763961331556,0.4789,2889.1,2888.4,0.0866]
[1763961331756,0.4789,2889.1,2888.8,0.1]
[1763961332004,0.4914,2889.0,2888.5,0.1]
[1763961332150,0.4914,2889.0,2887.4,0.90699264]
[1763961332151,0.4914,2889.0,2888.4,0.1]
[1763961332358,0.1976,2888.9,2888.2,0.1]
[1763961332677,0.1976,2888.9,2888.5,0.1]
[1763961332867,0.689,2888.9,2888.5,0.1]
[1763961333389,0.689,2888.9,2887.8,0.1812]
[1763961333390,0.689,2888.9,2888.6,0.1]
[1763961333558,0.1976,2888.9,2888.6,0.1]
[1763961333758,0.1976,2888.9,2888.8,0.1]
[1763961334262,0.160821,2889.8,2888.8,0.2812]
[1763961334462,0.160821,2889.8,2889.6,0.1]
[1763961334669,0.160821,2889.8,2889.1,2.34041737]
[1763961334954,0.160821,2889.8,2889.7,0.2812]
[1763961335393,0.160821,2889.8,2889.5,2.96346258]
[1763961335577,0.160821,2889.8,2889.7,0.1]
[1763961335953,0.160821,2889.8,2889.7,0.2812]
[1763961336396,0.160821,2889.8,2889.7,0.3624]
[1763961336569,0.160821,2889.8,2889.7,1.1908006]
[1763961337065,0.160821,2889.8,2889.7,0.4624]
[1763961337266,0.160821,2889.8,2889.7,0.3624]
[1763961337467,0.160821,2889.8,2889.7,0.4624]
[1763961337882,0.160821,2889.8,2889.7,3.92296684]
[1763961338192,0.160821,2889.8,2889.7,0.2812]
[1763961339106,0.621021,2889.8,2889.7,0.1]
[1763961339462,1.078721,2889.8,2889.7,0.1]
[1763961339873,1.078721,2889.8,2888.7,2.96346258]
[1763961340101,0.65,2888.8,2888.3,7.30917483]
[1763961340273,0.65,2888.8,2886.4,16.13755162]
[1763961340274,0.4602,2888.6,2888.2,0.1]
[1763961340474,0.4577,2888.7,2888.0,0.1]
[1763961340475,0.4602,2888.4,2888.0,0.1]
[1763961340689,0.4577,2888.6,2887.2,0.1]
[1763961340985,0.4577,2888.6,2886.2,0.1746]
[1763961340986,0.1898,2887.4,2886.2,2.96346258]
[1763961341203,0.1898,2886.8,2886.0,2.96346258]
[1763961341400,0.1898,2885.7,2885.6,0.001]
[1763961342000,0.4577,2886.7,2885.6,0.001]
[1763961342170,0.4577,2886.7,2886.0,0.1]
[1763961342500,0.1898,2886.8,2885.6,0.001]
[1763961342501,0.1898,2886.8,2886.4,0.1]
[1763961342909,0.1898,2886.8,2885.6,3.64767261]
[1763961342910,0.4577,2886.7,2885.6,0.001]
[1763961343127,0.4577,2886.7,2885.6,0.101]
[1763961343966,8.04946,2886.6,2885.6,0.001]
[1763961344199,22.448169,2886.2,2885.4,1.00520417]
[1763961344519,2.23730864,2886.5,2885.4,1.00520417]
[1763961344819,0.4796,2886.4,2885.4,1.00520417]
[1763961345252,1.38659264,2886.4,2885.4,1.00520417]
[1763961345415,0.90699264,2886.0,2885.4,1.00520417]
[1763961345612,0.90699264,2885.8,2885.4,1.00520417]
[1763961345813,0.90699264,2885.6,2885.0,0.001]
[1763961346040,0.90699264,2885.6,2883.8,0.00709096]
[1763961346041,0.90699264,2885.4,2883.9,0.1]
[1763961346240,4.60635,2885.3,2883.9,0.1]
[1763961346449,4.60635,2885.3,2883.5,0.00805852]
[1763961346450,0.55133426,2885.2,2883.5,0.00805852]
[1763961346620,0.4796,2885.2,2883.6,0.1]
[1763961346944,0.1855,2883.6,2883.5,0.001]
[1763961347146,7.75563422,2885.0,2883.5,0.001]
[1763961347147,0.90699264,2884.9,2883.5,0.001]
[1763961347462,0.4796,2884.9,2883.5,0.001]
[1763961347610,0.90699264,2884.7,2883.5,0.001]
[1763961347815,0.4796,2884.8,2883.5,0.001]
[1763961348126,0.4796,2884.7,2883.5,0.101]
[1763961348510,0.4796,2884.7,2883.7,0.1]
[1763961348711,0.4796,2884.7,2883.5,0.001]
[1763961348712,0.1907,2883.6,2883.5,0.001]
[1763961349461,0.6703,2883.6,2883.5,0.001]
[1763961349666,0.1907,2883.8,2883.5,0.001]
[1763961350135,0.6703,2884.0,2883.5,0.001]
[1763961350674,5.80654,2883.8,2883.5,0.001]
[1763961350966,1.108214,2883.7,2883.5,0.001]
[1763961351109,0.4796,2883.7,2883.5,0.001]
[1763961352961,8.58766,2883.6,2883.2,0.001]
[1763961353289,2.93058864,2883.6,2883.2,0.001]
[1763961353591,0.1907,2884.0,2883.2,0.001]
[1763961353592,0.4796,2883.5,2883.2,0.001]
[1763961354147,3.63136,2883.4,2883.2,0.001]
[1763961354447,0.411096,2883.3,2883.0,0.001]
[1763961354678,0.90699264,2883.0,2882.7,0.001]
[1763961354890,0.90699264,2883.0,2880.9,0.167]
[1763961354891,3.471136,2882.7,2880.9,0.167]
[1763961355046,0.90699264,2882.4,2880.9,0.1]
[1763961355247,0.1907,2881.0,2880.4,0.1]
[1763961355479,0.1907,2881.0,2880.2,0.1]
[1763961355652,0.4796,2881.8,2880.1,0.4916]
[1763961356202,0.4796,2881.8,2880.0,0.168]
[1763961356384,0.4796,2881.8,2880.2,0.1]
[1763961356545,0.4796,2881.8,2880.0,0.168]
[1763961356750,0.4796,2881.8,2880.3,0.1]
[1763961357057,0.90699264,2881.6,2880.0,0.168]
[1763961357258,0.90699264,2881.6,2879.9,0.1]
[1763961357259,4.339756,2881.3,2879.9,0.1]
[1763961357589,4.339756,2881.3,2879.2,0.001]
[1763961357590,0.1907,2880.0,2879.2,0.001]
[1763961357789,0.90699264,2881.2,2879.4,0.1]
[1763961358082,0.37939486,2881.5,2879.2,0.001]
[1763961358083,0.1907,2880.1,2879.2,0.001]
[1763961358379,0.6703,2880.1,2879.2,0.001]
[1763961358898,0.1907,2880.1,2879.2,0.001]
[1763961359058,0.4796,2880.0,2879.2,0.001]
[1763961359384,0.4796,2880.4,2879.2,0.30273186]
[1763961359676,0.4796,2880.4,2879.3,0.4916]
[1763961359880,0.1907,2880.8,2879.3,0.4916]
[1763961360306,0.6703,2880.8,2879.7,0.1]
[1763961360479,0.6703,2880.8,2879.5,0.1]
[1763961360681,0.6703,2880.8,2879.4,0.1]
[1763961360883,1.77707471,2883.6,2879.3,0.4916]
[1763961360884,0.4796,2881.8,2879.8,7.3589281]
[1763961361083,0.4796,2881.8,2879.3,1.39859264]
[1763961361084,1.02429238,2882.4,2880.8,0.1]
[1763961361286,0.6703,2882.0,2880.8,0.1]
[1763961361573,0.1907,2882.0,2880.9,0.4916]
[1763961361772,0.6703,2882.0,2880.3,0.168]
[1763961362014,6.555924,2881.9,2880.4,0.363996]
[1763961362176,6.555924,2881.8,2880.5,0.1]
[1763961362508,0.4796,2881.8,2880.5,0.1]
[1763961362714,0.4796,2881.8,2880.7,0.1]
[1763961363209,0.4796,2881.8,2880.3,0.168]
[1763961363396,0.90699264,2881.4,2879.8,0.1]
[1763961363597,0.4796,2881.8,2879.9,6.56431676]
[1763961363800,0.4796,2881.8,2880.5,0.1]
[1763961364115,0.4796,2881.8,2880.2,0.1]
[1763961364272,0.4796,2881.8,2880.9,0.1]
[1763961364610,0.1907,2882.0,2880.4,6.03799334]
[1763961364794,0.1907,2882.0,2881.4,0.1]
[1763961364995,0.1907,2882.0,2881.0,0.1]
[1763961365209,0.1907,2882.0,2880.6,0.4916]
[1763961365417,0.1907,2882.0,2881.1,0.1]
[1763961366508,0.1907,2882.0,2881.1,0.2842]
[1763961366726,0.4873,2882.7,2881.2,0.49780776]
[1763961367016,0.4873,2882.7,2881.3,0.67200011]
[1763961367224,0.4873,2882.7,2881.6,0.1]
[1763961367841,0.4873,2882.7,2881.3,0.1]
[1763961368010,0.4873,2882.7,2881.6,0.1]
[1763961368725,0.1907,2882.8,2881.6,0.5631]
[1763961368926,0.1907,2883.1,2882.2,0.1]
[1763961369429,0.1951,2883.6,2882.6,0.1]
[1763961369770,0.002,2883.7,2883.2,0.1]
[1763961369925,0.002,2883.7,2883.0,0.1]
[1763961370327,0.002,2883.7,2883.1,0.167]
[1763961370624,0.002,2883.7,2883.4,0.1]
[1763961370829,0.002,2883.7,2883.5,6.03799334]
[1763961371054,0.002,2884.3,2883.6,1.16689933]
[1763961371275,0.002,2884.3,2883.6,0.60379933]
[1763961371483,0.6824,2883.9,2882.7,0.165]
[1763961371781,0.002,2884.3,2882.7,0.165]
[1763961371782,0.002,2884.3,2883.1,0.1]
[1763961371982,0.002,2884.3,2882.7,0.165]
[1763961371983,0.002,2884.3,2882.8,0.4631]
[1763961372183,0.002,2884.3,2883.5,0.1]
[1763961372342,0.002,2884.3,2883.6,0.1]
[1763961372536,0.002,2884.3,2883.1,6.03799334]
[1763961372537,0.002,2884.3,2883.2,0.4631]
[1763961372767,0.002,2884.3,2883.8,0.1]
[1763961373270,0.002,2884.3,2883.5,0.5631]
[1763961373481,0.002,2884.3,2883.8,0.1]
[1763961373683,0.002,2884.3,2883.3,0.65010933]
[1763961373898,0.002,2884.3,2883.6,0.1]
[1763961374400,0.002,2884.3,2883.5,0.1]
[1763961374894,0.1951,2883.9,2883.0,0.4631]